Cogmind - Beta 17.1 @@@ ROGUE MODE // 2026.09.04 @ 15:32:21 Player: MolePlayingNice Result: Core melted Performance ------------- Evolutions (6) 3000 Regions Visited (17) 3400 Robots Destroyed (247) 1235 Value Destroyed (11912) 11912 Prototype IDs (25) 500 Alien Tech Used (0) 0 Bonus (24607) 24607 TOTAL SCORE: 44654 Bonus ------- Triggered High Security 500 High Alert Combat Kills 7283 Follower Combat Kills 6946 Prayed to X0-1V1 5000 Major X0-1V1 Interference 9500 Registered with UFD 300 Met Zhirov 300 Built Enhanced Grunts 300 Met R17 at Cetus 500 Friendly Fire -6022 Cogmind --------- Core Integrity 0/875 Matter 290/300 Energy 142/400 System Corruption 33% Temperature Critical (605) Movement Walking (120) Location -4/Armory Parts ------- > --- POWER (2) -------- Micro Nuclear Core Reinforced Quantum Reactor > --- PROPULSION (6) --- Centrium Leg Centrium Leg Centrium Leg High-density Centrium Leg High-density Centrium Leg High-density Centrium Leg > --- UTILITY (9) ------ Advanced Heat Sink High-capacity Storage Unit Medium Regenerative Plating Wyrmscale Wyrmscale Wyrmscale Wyrmscale X0-1V1's Piety Tracker > --- WEAPON (3) ------- Neutron Cannon Neutron Cannon > --- INVENTORY (22) --- Micro Fission Core Centrium Leg High-density Centrium Leg High-density Centrium Leg High-density Centrium Leg Advanced Cryofiber Web Advanced Energy Well (500) Experimental Energy Well (600) Improved System Restoration Module Coil Gun Advanced KE Penetrator Fusion Bomb Launcher Fusion Bomb Launcher Improved Plasma Cutter Peak State ------------ > --- POWER ------------ Quantum Reactor Improved Quantum Reactor > --- PROPULSION ------- Centrium Leg Centrium Leg Centrium Leg High-density Centrium Leg High-density Centrium Leg High-density Centrium Leg > --- UTILITY ---------- Experimental Cooling System Experimental Cooling System High-capacity Storage Unit Wyrmscale Wyrmscale Wyrmscale Wyrmscale Plateshifter > --- WEAPON ----------- Improved Matter Neutralizer Enhanced Nova Cannon Ragnarok Missile Launcher > --- INVENTORY -------- Improved Quantum Reactor High-density Centrium Leg High-density Centrium Leg High-density Centrium Leg High-density Centrium Leg High-density Centrium Leg Advanced Cryofiber Web Advanced Heat Sink Advanced Energy Well Experimental Energy Well High-capacity Matter Pod Advanced Terrain Scan Processor Improved Weapon Cycler Medium Regenerative Plating Improved System Restoration Module Compact HERF Cannon Neutron Cannon Neutron Cannon Neutron Cannon Enhanced Nova Cannon Fusion Bomb Launcher Improved Plasma Cutter [Rating: 207] Favorites ----------- Power Improved Deuterium Engine Engine Improved Deuterium Engine Power Core Micro Nuclear Core Reactor Compact Particle Reactor Propulsion Flexi-carbon Leg Leg Flexi-carbon Leg Utility X0-1V1's Piety Tracker Device X0-1V1's Piety Tracker Storage Large Storage Unit Processor Core Analyzer Hackware Advanced Hacking Suite Protection Wyrmscale Weapon Neutron Cannon Energy Gun Gatling Laser Energy Cannon Neutron Cannon Ballistic Gun Flak Gun Ballistic Cannon Mini Assault Cannon Launcher Fusion Bomb Launcher Special Weapon CPS Tube Impact Weapon Flail Special Melee Weapon Improved Datajack Build | -11 -10 -9 -9 -8 -8 -8 -8 -6 -6 -6 -6 -6 -5 -5 -5 -4 -4 ------- Run | Yrd Mat Mat Min Mat Sto Rec Scr Fac Ext Cet Arc Hub Fac Upp Upp Fac Arm Slots Evolved 12 | . . 2 . 2 . . . 4 . . . . 2 . . 2 . Power 1 | . . . . . . . . 1 . . . . . . . . . Propulsion 3 | . . 1 . . . . . 1 . . . . . . . 1 . Utility 7 | . . 1 . 1 . . . 2 . . . . 2 . . 1 . Weapon 1 | . . . . 1 . . . . . . . . . . . . . Parts Attached 188 | . 4 17 . 4 3 5 12 14 29 9 . 3 16 2 2 9 59 Power 32 | . . . . 1 . 1 3 1 6 1 . 1 3 1 1 2 11 Engine 12 | . . . . 1 . . 2 1 5 . . 1 1 1 . . . Core 8 | . . . . . . 1 1 . . . . . 1 . 1 1 3 Reactor 12 | . . . . . . . . . 1 1 . . 1 . . 1 8 Propulsion 49 | . 1 4 . . . 1 3 2 14 1 . 1 5 . . 3 14 Treads . | . . . . . . . . . . . . . . . . . . Leg 49 | . 1 4 . . . 1 3 2 14 1 . 1 5 . . 3 14 Wheel . | . . . . . . . . . . . . . . . . . . Hover . | . . . . . . . . . . . . . . . . . . Flight . | . . . . . . . . . . . . . . . . . . Utility 57 | . 1 7 . 1 2 . 3 4 6 6 . 1 6 1 . 4 15 Device 28 | . 1 4 . . . . 2 2 2 2 . . 4 . . 3 8 Storage 4 | . . 1 . . . . . . . 1 . . 1 . . . 1 Processor 3 | . . 1 . . . . 1 . . . . . . . . 1 . Hackware 2 | . . . . . . . . . . . . 1 1 . . . . Protection 20 | . . 1 . 1 2 . . 2 4 3 . . . 1 . . 6 Artifact . | . . . . . . . . . . . . . . . . . . Weapon 50 | . 2 6 . 2 1 3 3 7 3 1 . . 2 . 1 . 19 Energy Gun 5 | . . 2 . . . 1 2 . . . . . . . . . . Energy Cannon 18 | . . . . . 1 1 . 2 2 . . . 2 . 1 . 9 Ballistic Gun 8 | . 1 . . 2 . 1 1 1 1 1 . . . . . . . Ballistic Cannon 2 | . . 1 . . . . . 1 . . . . . . . . . Launcher 13 | . 1 2 . . . . . . . . . . . . . . 10 Special Weapon 1 | . . . . . . . . 1 . . . . . . . . . Impact Weapon 2 | . . 1 . . . . . 1 . . . . . . . . . Slashing Weapon . | . . . . . . . . . . . . . . . . . . Piercing Weapon . | . . . . . . . . . . . . . . . . . . Special Melee Weapon 1 | . . . . . . . . 1 . . . . . . . . . Unidentified Prototypes 12 | . 1 1 . . . . . 1 . 6 . . 2 . . . 1 Parts Lost 57 | . 1 4 . 1 . . 6 5 3 . . . 6 . . 4 27 Power 11 | . . . . . . . 2 1 . . . . 2 . . 2 4 Propulsion 8 | . . 1 . . . . 1 2 2 . . . 1 . . . 1 Utility 25 | . . 2 . . . . 1 2 1 . . . 3 . . 2 14 Weapon 13 | . 1 1 . 1 . . 2 . . . . . . . . . 8 Highest Loss Streak 12 | . 1 3 . 1 . . 3 3 1 . . . 3 . . 2 12 To Critical Strikes 1 | . . . . . . . . . . . . . . . . . 1 Average Backups 16 | 6 3 5 9 13 15 15 15 15 16 15 16 16 20 21 21 21 16 Power . | 1 . . . . 1 1 . . . . . . 1 2 1 . 1 Propulsion 1 | 4 . . 3 3 3 3 1 . 1 1 1 1 2 2 2 1 2 Utility 5 | . . 1 2 4 4 2 2 2 5 6 7 7 7 8 9 10 6 Weapon 6 | 1 2 3 4 6 7 8 8 9 8 6 6 7 7 7 6 7 5 Tool/Special . | . . . . . . . . . . . . . . . . . . Unused Backups 77 | . 12 4 . 1 1 1 7 1 9 4 . . 3 1 3 6 24 Power 7 | . 2 . . . . . . . . . . . . . 1 1 3 Propulsion 16 | . 6 1 . . . . . . 3 2 . . . . . . 4 Utility 22 | . 1 . . . 1 1 2 . 3 2 . . 2 . 2 4 4 Weapon 30 | . 3 3 . 1 . . 4 1 3 . . . 1 1 . 1 12 Tool/Special 2 | . . . . . . . 1 . . . . . . . . . 1 Average Slot Usage (%) 91 | . 59 55 88 87 93 100 95 86 99 99 100 100 99 100 100 99 84 Engine 4 | . 1 . . 7 9 3 6 8 10 6 6 6 1 . 5 3 . Core 1 | . . . . . . 4 . . . . . . . 4 . 3 2 Reactor 3 | . . . . . . . . . 1 6 6 6 8 5 4 2 6 Leg 28 | . 28 17 33 27 26 30 31 28 30 31 31 31 26 27 27 29 27 Device 14 | . . 13 22 9 9 8 13 10 11 11 12 12 23 22 26 18 14 Storage 5 | . 1 3 11 9 9 8 7 6 6 6 6 6 5 5 5 5 4 Processor 4 | . . 2 . . . . 7 6 6 6 6 6 5 5 5 9 1 Protection 8 | . . . . 8 12 16 2 7 12 12 12 7 5 10 5 11 14 Energy Gun 2 | . . 8 22 15 9 . 7 1 . . . . . . . . . Energy Cannon 8 | . . . . . 3 11 . 10 10 11 12 14 15 16 16 15 10 Ballistic Gun 5 | . 27 5 . 11 13 13 14 5 6 6 6 3 . . . . . Peak Build Rating 207 | 6 17 31 31 46 47 49 58 72 85 101 101 101 128 123 123 138 207 Average Rating 91 | 6 4 19 31 43 44 45 53 61 80 89 101 97 120 122 121 134 156 On Entrance 68 | 6 6 17 31 31 46 44 49 51 69 84 101 101 95 122 122 122 137 Avg Prop Armor Cover (%) 16 | . 21 22 . . . . 3 . . . . . . . . 3 3 Naked Turns . | . . . . . . . . . . . . . . . . . . Heaviest Build 190 | 11 11 28 28 55 55 46 52 64 88 86 86 86 116 114 110 122 190 Greatest Support 190 | 20 20 45 45 45 45 60 64 84 102 95 95 95 124 124 124 152 190 Greatest Overweight (x) 1 | . . 1 . 1 1 1 . 1 1 . . . 1 . . . 1 Average Overweight (x) . | . . . . . . . . . . . . . . . . . . Largest Inventory Capacity 22 | 8 8 15 15 17 17 17 17 17 17 17 17 17 22 22 22 22 22 Average Capacity 17 | 8 5 8 15 15 17 17 16 17 17 17 17 17 21 22 22 22 19 Most Carried 22 | 6 6 9 9 17 17 17 17 17 17 17 17 17 22 22 22 22 22 Average Carried 16 | 6 3 5 9 14 16 16 15 15 16 16 17 17 20 21 21 21 16 Final Capacity 22 | 8 5 15 15 17 17 17 17 17 17 17 17 17 22 22 22 22 22 Final Carried 22 | 6 4 9 9 17 17 17 16 17 17 17 17 17 20 22 21 21 14 Class Distribution -------------------- 26% | Scavenger-Gunner 24% | Scavenger-Tank 13% | Gunner 12% | Tank 10% | Mutant 9% | Scavenger-Mutant Dominant Class ---------------- Mutant | -10/Materials Mutant | -9/Materials Mutant | -9/Mines Tank | -8/Materials Tank | -8/Storage Tank | -8/Recycling Gunner | -8/Scraptown Scavenger-Gunner | -6/Factory Scavenger-Tank | -6/Extension Scavenger-Tank | -6/Cetus Scavenger-Gunner | -6/Archives Scavenger-Gunner | -6/Hub_04(d) Scavenger-Gunner | -5/Factory Scavenger-Gunner | -5/Upper Caves Scavenger-Gunner | -5/Upper Caves Scavenger-Tank | -4/Factory Scavenger-Mutant | -4/Armory Resources | -11 -10 -9 -9 -8 -8 -8 -8 -6 -6 -6 -6 -6 -5 -5 -5 -4 -4 ----------- Run | Yrd Mat Mat Min Mat Sto Rec Scr Fac Ext Cet Arc Hub Fac Upp Upp Fac Arm Matter Collected 7604 | 200 80 354 . 134 114 143 706 542 803 408 . 188 388 197 395 156 2796 Remotely . | . . . . . . . . . . . . . . . . . . Salvage Created 10115 | . 193 578 . 158 234 302 424 581 680 239 . 11 1524 56 264 594 4277 Parts 442 | . 15 29 . 10 9 18 23 25 35 18 . 1 65 2 11 27 154 Haulers Intercepted 4 | . . 4 . . . . . . . . . . . . . . . Recyclers Shooed 5 | . 1 . . . . 1 . 2 . . . . 1 . . . . Parts Field Recycled . | . . . . . . . . . . . . . . . . . . Retrieved Matter . | . . . . . . . . . . . . . . . . . . Parts Self-Destructed 32 | . . . . . . . . . . . . . . 8 24 . . Prevented 9 | . . . . . . . . . . . . . . 4 5 . . Parts Restored . | . . . . . . . . . . . . . . . . . . Kills | -11 -10 -9 -9 -8 -8 -8 -8 -6 -6 -6 -6 -6 -5 -5 -5 -4 -4 ------- Run | Yrd Mat Mat Min Mat Sto Rec Scr Fac Ext Cet Arc Hub Fac Upp Upp Fac Arm Combat Hostiles Destroyed 198 | . 9 14 . 3 4 4 10 4 10 3 . . 16 1 3 12 105 Melee 1 | . . . . . . . . . . . . . . . . . 1 Guns 31 | . 9 1 . 3 3 1 8 2 2 2 . . . . . . . Cannons 60 | . . 1 . . . 3 . 2 6 . . . 15 1 2 12 18 AOE 88 | . . 12 . . 1 . 2 . . . . . 1 . . . 72 Classes Destroyed 25 | . 2 6 . 1 . . 5 2 . . . 1 4 . 1 . 3 Worker 6 | . . 4 . . . . . 1 1 . . . . . . . . Builder 8 | . . 1 . . . . . 1 3 . . . 3 . . . . Tunneler 1 | . . 1 . . . . . . . . . . . . . . . Hauler 4 | . . 4 . . . . . . . . . . . . . . . Recycler 12 | . . 2 . . 2 1 . 3 . . . . 4 . . . . Mechanic 10 | . . . . . . . . . . . . . 1 . . . 9 Operator 2 | . . . . . . . . . . . . 1 1 . . . . Drone 2 | . . . . . . . . 1 . . . . . . . . 1 Watcher 6 | . . 1 . 1 . . . 1 . . . . 2 . . . 1 Swarmer 30 | . 7 10 . . 3 . . . . . . . 2 . . 5 3 Cutter 2 | . . . . . . . . . . . . . . . . . 2 Saboteur 10 | . . . . . . . . . . . . . . . . . 10 Grunt 52 | . 2 4 . 1 . . . . 4 . . . 2 . 1 2 36 Brawler 5 | . . . . . . . . . . . . . 1 . . . 4 Duelist 7 | . . . . . . . . . . . . . . . 1 . 6 Protector 4 | . . . . . . . . . . . . . . . . . 4 Sentry 22 | . . . . 2 1 4 . 1 5 . . . 3 . 1 4 1 Hunter 15 | . . . . . . . . 2 1 . . . . . . . 12 Programmer 33 | . . . . . . . . . . . . . 6 1 . 1 25 Heavy 3 | . . . . . . . . . . . . . 2 . . . 1 Cetus Guard 3 | . . . . . . . . . . 3 . . . . . . . Federalist 3 | . . . . . . . 3 . . . . . . . . . . Guru 1 | . . . . . . . 1 . . . . . . . . . . Scientist 1 | . . . . . . . 1 . . . . . . . . . . Scrapper 4 | . . . . . . . 4 . . . . . . . . . . Tinkerer 1 | . . . . . . . 1 . . . . . . . . . . Thug 2 | . . . . . . . 2 . . . . . . . . . . Commander 1 | . . . . . . . . . . . . . . . 1 . . Best Kill Streak 26 | . 5 12 . 2 3 3 9 5 3 2 . 1 5 1 2 3 26 Combat Bots Only 25 | . 5 10 . 2 3 1 7 2 3 2 . . 3 1 2 3 25 Max Kills in Single Turn 4 | . 1 4 . 1 1 1 2 2 2 1 . 1 3 1 1 1 4 Gunslinging 1 | . . . . . . . 1 . . . . . . . . . . Exploded 4 | . . 3 . . 1 . 1 . . . . . 1 . . . 4 Melee 1 | . . . . . . . . . . . . . . . . . 1 Uniques/NPCs Destroyed 1 | . . . . . . . . . . 1 . . . . . . . A7 (-6/Cetus) Combat | -11 -10 -9 -9 -8 -8 -8 -8 -6 -6 -6 -6 -6 -5 -5 -5 -4 -4 -------- Run | Yrd Mat Mat Min Mat Sto Rec Scr Fac Ext Cet Arc Hub Fac Upp Upp Fac Arm Hostile Shots Fired 1687 | . 70 35 . 38 12 6 52 90 186 15 . 2 68 6 18 85 1004 Missed 566 | . 27 11 . 13 4 1 11 23 72 9 . 1 19 1 6 25 343 Hits 1121 | . 43 24 . 25 8 5 41 67 114 6 . 1 49 5 12 60 661 Melee 93 | . . . . . . . . 27 . . . . 1 . . . 65 Projectile 1028 | . 43 24 . 25 8 5 41 40 114 6 . 1 48 5 12 60 596 AOE 5 | . . . . 3 . . . . . . . . . . . . 2 Critical Strikes 50 | . . . . 1 1 . 2 . 1 . . . 6 . . . 39 Part Disruptions 3 | . . . . . . . . . . . . . 1 . . . 2 Damage Taken 20402 | . 474 265 . 597 74 70 829 760 1294 120 . 57 1262 99 286 1223 12992 Core 1716 | . 174 62 . 49 6 15 74 71 81 24 . . 79 40 74 78 889 Absorbed by Shields 1336 | . . . . . . . 57 35 . 35 . . . . . 126 1083 Regen/Repaired (Parts) 5348 | . . . . . . . . . . 32 . . 367 50 28 198 4673 Core Remaining (%) 77 | 100 30 . 96 . . . 73 . . . . 95 . . 73 . . Volleys Fired 532 | . 28 17 . 14 9 6 19 23 45 41 2 8 55 6 16 32 211 Largest 3 | . 2 2 . 3 3 3 3 3 3 3 1 3 3 3 3 3 3 Hottest 353 | . 40 90 . 110 133 156 136 168 185 215 90 245 270 270 278 278 353 Shots Fired 1084 | . 55 29 . 35 27 18 38 65 123 83 2 13 143 12 33 82 326 Gun 255 | . 55 14 . 35 26 9 31 27 39 11 . 1 . . . . 7 Cannon 713 | . . 9 . . 1 9 . 37 84 71 2 12 143 12 33 82 218 Launcher 114 | . . 6 . . . . 7 . . . . . . . . . 101 Special 2 | . . . . . . . . 1 . 1 . . . . . . . Kinetic 251 | . 55 18 . 23 17 9 24 21 55 21 . 1 . . . . 7 Thermal 691 | . . . . . 1 9 7 43 68 61 2 12 143 12 33 82 218 Explosive 75 | . . 6 . . . . 7 . . . . . . . . . 62 Electromagnetic 65 | . . 5 . 12 9 . . . . . . . . . . . 39 Robot Hit Streak 16 | . 3 10 . 11 6 4 14 13 9 12 13 14 11 7 6 15 16 Robot Miss Streak 7 | . 4 4 . 4 6 2 5 5 5 2 . 1 5 2 1 3 7 Penetration Max 1 | . . . . . . . . . . 1 . . . . . . . Secondary Targets 6 | . 1 . . 2 . . 3 . . . . . . . . . . Max Gunslinging Chain 2 | . 1 . . 1 . . 2 . . . . . . . . . . Shots Hit Robots 601 | . 25 26 . 26 15 8 33 35 78 59 1 3 74 4 17 51 146 Core Hits 571 | . 12 25 . 16 12 8 58 28 34 19 . 2 36 1 7 23 290 Critical Kills 8 | . . 1 . . . . . . 2 3 . . . . 2 . . Critical Parts Destroyed 2 | . . 2 . . . . . . . . . . . . . . . Critical Strikes 12 | . . 3 . . . . . . 2 5 . . . . 2 . . Meltdown 5 | . . . . . . . . . 2 1 . . . . 2 . . Destroy 5 | . . 1 . . . . . . . 4 . . . . . . . Smash 2 | . . 2 . . . . . . . . . . . . . . . Melee Attacks 38 | . . 10 . . 1 . . 6 12 . . . . . . . 9 Impact 16 | . . 10 . . 1 . . 5 . . . . . . . . . Slashing . | . . . . . . . . . . . . . . . . . . Piercing . | . . . . . . . . . . . . . . . . . . Sneak Attacks 29 | . . 6 . . . . . 2 12 . . . . . . . 9 Combat Hostiles . | . . . . . . . . . . . . . . . . . . Follow-up Attacks . | . . . . . . . . . . . . . . . . . . Damage Inflicted 42389 | . 265 1884 20 447 254 209 1228 989 2285 1870 32 126 3461 191 641 2050 26437 Guns 2921 | . 264 86 . 447 207 51 631 371 518 221 . . . . . . 125 Cannons 13522 | . . 144 . . . 129 . 479 1655 1649 32 95 2986 191 641 2050 3471 Explosions 24937 | . . 977 . . 47 . 597 . . . . . 475 . . . 22841 Melee 727 | . . 614 . . . . . 113 . . . . . . . . . Ramming 233 | . 1 14 20 . . 29 . 26 112 . . 31 . . . . . Kinetic 2852 | . 264 196 . 289 93 51 484 216 866 268 . . . . . . 125 Thermal 15358 | . . . . . 47 129 147 634 1307 1602 32 95 3461 191 641 2050 5022 Explosive 17928 | . . 977 . . . . 597 . . . . . . . . . 16354 Electromagnetic 5242 | . . 34 . 158 114 . . . . . . . . . . . 4936 Impact 727 | . . 614 . . . . . 113 . . . . . . . . . Slashing 49 | . . 49 . . . . . . . . . . . . . . . Piercing . | . . . . . . . . . . . . . . . . . . Highest Corruption 33 | . . 1 1 . . . . . . . . . 7 10 10 . 33 Average Corruption 12 | . . 1 1 . . . . . . . . . 5 7 10 . 24 Corruption Purged . | . . . . . . . . . . . . . . . . . . Corruption Blocked . | . . . . . . . . . . . . . . . . . . Effects 172 | . . 4 . . . . . . . . . . 23 21 27 . 97 Message Errors 48 | . . 2 . . . . . . . . . . 6 9 12 . 19 Matter Fused 41 | . . . . . . . . . . . . . 6 4 5 . 26 Heat Flow Errors 13 | . . 1 . . . . . . . . . . 1 3 2 . 6 Energy Discharges 20 | . . . . . . . . . . . . . 3 4 5 . 8 Parts Rejected 5 | . . . . . . . . . . . . . 3 . . . 2 Data Loss (minor) 12 | . . . . . . . . . . . . . 3 1 2 . 6 Data Loss (major) 7 | . . . . . . . . . . . . . 1 . 1 . 5 Misfires 9 | . . 1 . . . . . . . . . . . . . . 8 Alerts 2 | . . . . . . . . . . . . . . . . . 2 Misdirections 1 | . . . . . . . . . . . . . . . . . 1 Weapon Failures 14 | . . . . . . . . . . . . . . . . . 14 Overload Shots . | . . . . . . . . . . . . . . . . . . Overflow Damage 1592 | . . 202 . . . . . 161 33 . 11 . 221 . . 10 954 Projectiles 274 | . . . . . . . . 28 24 . 11 . 64 . . 10 137 Explosions 1043 | . . 19 . . . . . 50 . . . . 157 . . . 817 Melee 275 | . . 183 . . . . . 83 9 . . . . . . . . Knockbacks 5 | . . 1 1 . . 1 . . 1 . . 1 . . . . . Impact 4 | . . 1 1 . . 1 . . . . . 1 . . . . . Kinetic 1 | . . . . . . . . . 1 . . . . . . . . Secondary . | . . . . . . . . . . . . . . . . . . Self-Inflicted Damage 1157 | . . 27 . . . . . 124 . . . . . . . . 1006 Shots 22 | . . 2 . . . . . 2 . . . . . . . . 18 Rammed 1 | . 1 . . . . . . . . . . . . . . . . Targets Rammed 21 | . 1 3 2 . . 4 . 2 5 . . 4 . . . . . Kicked 20 | . . 3 2 . . 4 . 2 5 . . 4 . . . . . Crushed . | . . . . . . . . . . . . . . . . . . Highest Temperature 605 | . 1 167 . 72 27 60 65 178 151 135 . 66 180 148 202 213 605 Average Temperature 78 | . 1 82 . 34 6 28 29 60 31 41 . 29 63 59 39 52 107 Received Heat Transfer 1620 | . 36 51 . 153 27 27 265 24 249 13 . . 81 . 72 156 466 Effects 14 | . . . . . . . . . . . . . . . . . 14 Shutdowns 1 | . . . . . . . . . . . . . . . . . 1 Energy Bleed 2 | . . . . . . . . . . . . . . . . . 2 Interference 4 | . . . . . . . . . . . . . . . . . 4 Matter Decay 1 | . . . . . . . . . . . . . . . . . 1 Damage (minor) 1 | . . . . . . . . . . . . . . . . . 1 Damage (major) 4 | . . . . . . . . . . . . . . . . . 4 Damage (core) 1 | . . . . . . . . . . . . . . . . . 1 Siege Activations . | . . . . . . . . . . . . . . . . . . Martial Activations . | . . . . . . . . . . . . . . . . . . Shielding Activations . | . . . . . . . . . . . . . . . . . . Robots Disrupted 1 | . . . . 1 . . . . . . . . . . . . . Combat Hostiles 1 | . . . . 1 . . . . . . . . . . . . . Robots Corrupted 17 | . . 3 . . . . . . . . . . . . . . 14 Combat Hostiles 13 | . . . . . . . . . . . . . . . . . 13 Parts Fried 40 | . . 4 . . . . . 2 . . . . 1 . . 1 32 Impact Corruptions 7 | . . 5 . . . . . 1 1 . . . . . . . . Robots Melted 6 | . . . . . . . . . 2 1 . . . . 2 . 1 Combat Hostiles 5 | . . . . . . . . . 2 1 . . . . 1 . 1 Parts Melted 23 | . . . . . . . 4 1 6 . . . 6 . 5 1 . Heat Transferred 12273 | . . . . . 50 222 230 1034 1772 1725 50 150 2148 162 550 1074 3106 Parts Sabotaged 4 | . . . . . . . . . . . . . . . . . 4 Parts Stolen 5 | . . . . . . . . 4 . . . . . . . . 1 Parts Stripped . | . . . . . . . . . . . . . . . . . . Power Chain Reactions 12 | . . . . . 1 . . . . . . . 1 . . . 10 Alert | -11 -10 -9 -9 -8 -8 -8 -8 -6 -6 -6 -6 -6 -5 -5 -5 -4 -4 ------- Run | Yrd Mat Mat Min Mat Sto Rec Scr Fac Ext Cet Arc Hub Fac Upp Upp Fac Arm Maximum Alert Level 5 | . . 1 . . . . . . 3 3 1 1 4 . . 5 5 Low Security (%) 29 | 100 100 28 100 100 100 100 . 100 2 . . 72 18 . . . . Level 1 7 | . . 71 . . . . . . 4 . 100 27 4 . . 1 . Level 2 14 | . . . . . . . . . 33 78 . . 28 . . 8 . Level 3 22 | . . . . . . . . . 59 21 . . 39 . . 38 13 Level 4 3 | . . . . . . . . . . . . . 8 . . 21 4 Level 5 2 | . . . . . . . . . . . . . . . . 30 1 High Security 19 | . . . . . . . . . . . . . . . . . 80 Max Security . | . . . . . . . . . . . . . . . . . . Sterilizations 1 | . . . . . . . . . . . . . . . . . 1 Peak Influence 5346 | . 155 330 96 55 116 148 . 134 1018 762 255 325 1208 . . 1748 5346 Initial 856 | . . 17 96 13 9 23 . . 7 552 240 68 154 . . 392 856 Average 1271 | . 74 221 69 11 62 70 . 45 710 652 234 179 628 . . 1166 3751 Influence Increases 13904 | . 235 585 . 111 151 265 . 334 2113 356 16 317 2006 161 462 1682 5110 Destroy 0b10 Robot/C 6600 | . 180 280 . 60 80 80 . 140 760 160 . 100 600 100 360 540 3160 Destroy 0b10 Robot/NC 430 | . . 65 . 5 10 5 . 50 40 10 . 5 85 . . 55 100 Destroy Leader 1050 | . 40 60 . 22 20 . . 22 94 . . 30 136 30 10 144 442 Allied During Kill 2082 | . . . . . . . . 49 299 133 . 135 404 31 92 151 788 Successful Hack 77 | . . 8 . 8 7 . . 8 35 . . 8 3 . . . . Select Force Hacks 180 | . . . . . . 180 . . . . . . . . . . . Disable Machine 825 | . . 15 . . 30 . . 30 15 . 15 . 315 . . 330 75 Anti-Garrison Action 150 | . . . . . . . . . . . . . . . . 150 . Destroy Structure 1601 | . . 37 . 1 4 . . 35 201 53 1 39 448 . . 312 470 Partial Spotted 30 | . . 30 . . . . . . . . . . . . . . . Lose Combat Pursuer 225 | . 15 90 . 15 . . . . 15 . . . 15 . . . 75 Miscellaneous 654 | . . . . . . . . . 654 . . . . . . . . Influence Decreases 8558 | . 192 379 213 125 112 308 18 319 1142 740 422 198 1143 715 462 558 1512 Entered New Map 3045 | . . 26 153 23 13 38 18 . 8 434 362 128 161 437 120 232 892 Time Decay 3819 | . 182 313 60 92 99 270 . 165 564 286 40 70 542 278 342 286 230 Lost Part 500 | . 10 40 . 10 . . . 40 30 . . . 60 . . 40 270 Lost Ally 480 | . . . . . . . . . 240 20 20 . 80 . . . 120 Purge Threat 714 | . . . . . . . . 114 300 . . . 300 . . . . Squads Dispatched 70 | . 1 8 1 2 1 1 . . 5 . . 2 7 . . 5 37 Investigation 7 | . . 3 . 1 . 1 . . 1 . . . . . . 1 . Extermination 6 | . . . . . . . . . 1 . . . 3 . . 1 1 Reinforcement 15 | . 1 5 1 1 1 . . . . . . 2 2 . . . 2 Assault 41 | . . . . . . . . . 3 . . . 2 . . 2 34 Garrison 1 | . . . . . . . . . . . . . . . . 1 . Intercept . | . . . . . . . . . . . . . . . . . . Searches Triggered . | . . . . . . . . . . . . . . . . . . Construction Impeded 1 | . . . 1 . . . . . . . . . . . . . . Haulers Reinforced . | . . . . . . . . . . . . . . . . . . Active Scanning Responses . | . . . . . . . . . . . . . . . . . . Cargo Convoy Interrupts . | . . . . . . . . . . . . . . . . . . Stealth | -11 -10 -9 -9 -8 -8 -8 -8 -6 -6 -6 -6 -6 -5 -5 -5 -4 -4 --------- Run | Yrd Mat Mat Min Mat Sto Rec Scr Fac Ext Cet Arc Hub Fac Upp Upp Fac Arm Distress Signals 15 | . 2 3 . . 1 . . . 1 2 . . 3 . . 1 2 Communications Jammed 44 | . . . . . . . . . . . . . 17 . . 25 2 Distress Signals 32 | . . . . . . . . . . . . . 9 . . 23 . Times Spotted 417 | . 17 30 . 8 8 2 24 8 47 10 . 4 31 2 7 23 196 Peak Tracking Total 20 | . 5 5 . 4 5 1 11 3 6 5 . 4 4 1 4 5 20 Tactical Retreats 14 | . 1 5 . 1 . . . . 1 . . . 1 . . . 5 Traps | -11 -10 -9 -9 -8 -8 -8 -8 -6 -6 -6 -6 -6 -5 -5 -5 -4 -4 ------- Run | Yrd Mat Mat Min Mat Sto Rec Scr Fac Ext Cet Arc Hub Fac Upp Upp Fac Arm Traps Triggered 9 | . 2 3 . . 3 . . . . . . . 1 . . . . Indirectly . | . . . . . . . . . . . . . . . . . . Trap Hack Attempts . | . . . . . . . . . . . . . . . . . . Triggered . | . . . . . . . . . . . . . . . . . . Disarmed . | . . . . . . . . . . . . . . . . . . Reprogrammed 6 | . . . . . . . . . . . . . 6 . . . . Reused . | . . . . . . . . . . . . . . . . . . Traps Extracted . | . . . . . . . . . . . . . . . . . . Installed . | . . . . . . . . . . . . . . . . . . Triggered . | . . . . . . . . . . . . . . . . . . Most Traps Carried 1 | . . . . . . . . . 1 1 1 1 1 . . . . Machines | -11 -10 -9 -9 -8 -8 -8 -8 -6 -6 -6 -6 -6 -5 -5 -5 -4 -4 ---------- Run | Yrd Mat Mat Min Mat Sto Rec Scr Fac Ext Cet Arc Hub Fac Upp Upp Fac Arm Machines Disabled 69 | . . 1 . . 2 . 4 2 3 . 1 . 21 . 4 24 7 Max in Single Turn 5 | . . 1 . . 1 . . 2 1 . 1 . 5 . 1 . 1 Garrison Access 2 | . . . . 1 . . . . . . . . . . . 1 . Energy Cycler 1 | . . . . . . . . . . . . . . . . . 1 Machines Repaired . | . . . . . . . . . . . . . . . . . . Machines Dismantled . | . . . . . . . . . . . . . . . . . . Machines Sabotaged . | . . . . . . . . . . . . . . . . . . Overloaded Fab Kills . | . . . . . . . . . . . . . . . . . . Hacking | -11 -10 -9 -9 -8 -8 -8 -8 -6 -6 -6 -6 -6 -5 -5 -5 -4 -4 --------- Run | Yrd Mat Mat Min Mat Sto Rec Scr Fac Ext Cet Arc Hub Fac Upp Upp Fac Arm Machines Accessed 45 | . . 5 1 3 2 6 3 2 9 . . 1 5 1 3 4 . Terminals 31 | . . 5 1 2 2 . . 2 9 . . 1 5 . 1 3 . Fabricators . | . . . . . . . . . . . . . . . . . . Repair Stations . | . . . . . . . . . . . . . . . . . . Recycling Units 6 | . . . . . . 6 . . . . . . . . . . . Scanalyzers . | . . . . . . . . . . . . . . . . . . Garrison Access 2 | . . . . 1 . . . . . . . . . . . 1 . Total Hacks 133 | . . 14 3 7 2 7 28 5 20 . . 4 15 1 14 13 . Successful 73 | . . 1 . 2 2 6 28 3 8 . . 2 5 1 14 1 . Failed 60 | . . 13 3 5 . 1 . 2 12 . . 2 10 . . 12 . Catastrophic 17 | . . 6 1 2 . . . . 2 . . . 4 . . 2 . Database Lockouts . | . . . . . . . . . . . . . . . . . . Manual 55 | . 1 13 3 4 1 7 . 4 5 1 . 3 10 . . 3 . Terminals 84 | . . 14 3 4 2 . . 5 20 . . 4 15 . 6 11 . Fabricators . | . . . . . . . . . . . . . . . . . . Repair Stations . | . . . . . . . . . . . . . . . . . . Recycling Units 7 | . . . . . . 7 . . . . . . . . . . . Scanalyzers . | . . . . . . . . . . . . . . . . . . Garrison Access 5 | . . . . 3 . . . . . . . . . . . 2 . Terminal Hacks 66 | . . 1 . 1 2 . 28 3 8 . . 2 5 1 14 1 . Record 36 | . . . . . . . 23 . . . . . . . 13 . . Robot Analysis 5 | . . . . . . . 5 . . . . . . . . . . Open Door 9 | . . . . . 1 . . . 6 . . . . 1 1 . . Open DSF 1 | . . . . . . . . . . . . . 1 . . . . Level Access Points 1 | . . . . . . . . . . . . 1 . . . . . Branch Access Points 5 | . . 1 . 1 1 . . 1 . . . . 1 . . . . Alert Level 3 | . . . . . . . . 1 . . . 1 . . . 1 . Unreport Threat 5 | . . . . . . . . 1 2 . . . 2 . . . . Reprogram Traps 1 | . . . . . . . . . . . . . 1 . . . . Fabricator Hacks . | . . . . . . . . . . . . . . . . . . Repair Station Hacks . | . . . . . . . . . . . . . . . . . . Recycling Unit Hacks . | . . . . . . . . . . . . . . . . . . Scanalyzer . | . . . . . . . . . . . . . . . . . . Garrison Access Hacks 1 | . . . . 1 . . . . . . . . . . . . . Seal Access 1 | . . . . 1 . . . . . . . . . . . . . Unauthorized Hacks 6 | . . . . . . 6 . . . . . . . . . . . Terminals . | . . . . . . . . . . . . . . . . . . Fabricators . | . . . . . . . . . . . . . . . . . . Repair Stations . | . . . . . . . . . . . . . . . . . . Recycling Units 6 | . . . . . . 6 . . . . . . . . . . . Tunnel 6 | . . . . . . 6 . . . . . . . . . . . Scanalyzers . | . . . . . . . . . . . . . . . . . . Garrison Access . | . . . . . . . . . . . . . . . . . . Data Cores Recovered 1 | . . . . . . . . . . . . 1 . . . . . Used 1 | . . . . . . . . . . . . 1 . . . . . Hacking Detections 25 | . . 5 1 2 2 . . 1 4 . . 1 5 . . 4 . Full Trace Events 5 | . . 2 . 1 . . . . 1 . . . . . . 1 . Feedback Events . | . . . . . . . . . . . . . . . . . . Feedback Blocked . | . . . . . . . . . . . . . . . . . . Robot Schematics Acquired . | . . . . . . . . . . . . . . . . . . Robots Built . | . . . . . . . . . . . . . . . . . . Authchips . | . . . . . . . . . . . . . . . . . . Time . | . . . . . . . . . . . . . . . . . . Total Robot Build Rating . | . . . . . . . . . . . . . . . . . . Part Schematics Acquired . | . . . . . . . . . . . . . . . . . . Parts Built . | . . . . . . . . . . . . . . . . . . Authchips . | . . . . . . . . . . . . . . . . . . Time . | . . . . . . . . . . . . . . . . . . Total Part Build Rating . | . . . . . . . . . . . . . . . . . . Part Studies Acquired . | . . . . . . . . . . . . . . . . . . Parts Repaired . | . . . . . . . . . . . . . . . . . . Time . | . . . . . . . . . . . . . . . . . . Parts Recycled . | . . . . . . . . . . . . . . . . . . Recycled Matter . | . . . . . . . . . . . . . . . . . . Retrieved Matter . | . . . . . . . . . . . . . . . . . . Retrieved Components . | . . . . . . . . . . . . . . . . . . Parts Scanalyzed . | . . . . . . . . . . . . . . . . . . Part Schematics Acquired . | . . . . . . . . . . . . . . . . . . Parts Damaged . | . . . . . . . . . . . . . . . . . . Bothacking | -11 -10 -9 -9 -8 -8 -8 -8 -6 -6 -6 -6 -6 -5 -5 -5 -4 -4 ------------ Run | Yrd Mat Mat Min Mat Sto Rec Scr Fac Ext Cet Arc Hub Fac Upp Upp Fac Arm Used RIF Installer . | . . . . . . . . . . . . . . . . . . Robots Hacked 1 | . . . . . . . . 1 . . . . . . . . . Non-combat . | . . . . . . . . . . . . . . . . . . Combat 1 | . . . . . . . . 1 . . . . . . . . . Robot Hacks Applied 1 | . . . . . . . . 1 . . . . . . . . . parse_system 1 | . . . . . . . . 1 . . . . . . . . . Relay Couplers Released 5 | . . . . 2 . . . . . . . . . . . 3 . Machine Destruction 5 | . . . . 2 . . . . . . . . . . . 3 . Fabnet Peak Effective % . | . . . . . . . . . . . . . . . . . . Robots Rewired 15 | . . . . . . . . . 11 . . . . . . . 4 Allies Hacked . | . . . . . . . . . . . . . . . . . . Hacks Repelled . | . . . . . . . . . . . . . . . . . . Allies | -11 -10 -9 -9 -8 -8 -8 -8 -6 -6 -6 -6 -6 -5 -5 -5 -4 -4 -------- Run | Yrd Mat Mat Min Mat Sto Rec Scr Fac Ext Cet Arc Hub Fac Upp Upp Fac Arm Total Allies 33 | . . . . . . . 1 . 21 5 . . . . . . 6 Largest Group 10 | . . . . . . . 1 1 10 10 9 6 5 1 1 1 5 Highest-Rated Group 1177 | . . . . . . . 464 464 755 1177 1034 879 783 464 464 464 664 Highest-Rated Ally 464 | . . . . . . . 464 464 464 464 464 464 464 464 464 464 464 Total Orders 4 | . . . . . . . 2 . . 2 . . . . . . . STAY 1 | . . . . . . . . . . 1 . . . . . . . FOLLOW 1 | . . . . . . . . . . 1 . . . . . . . EXPLORE 1 | . . . . . . . 1 . . . . . . . . . . RETURN 1 | . . . . . . . 1 . . . . . . . . . . Ally Attacks 725 | . . . . . . . 62 5 172 39 1 24 70 12 18 65 257 Total Damage 34734 | . . . . . . . 5151 458 6361 1419 . 686 2948 944 2035 3761 10971 Kills 213 | . . . . . . . 31 7 34 7 . 5 20 4 15 26 64 Allies Corrupted 1 | . . . . . . . . . . . . . . . . . 1 Allies Melted 2 | . . . . . . . . . . . . . . . 1 . 1 X0-1V1 Amusement Gains 314 | . 24 15 . 5 . . 40 10 50 10 . . 40 . 20 . 100 Average Entertainment 39 | . 24 24 7 9 6 4 40 39 36 42 33 21 17 39 24 24 83 Good Acts 72 | . . 9 1 3 2 8 . 1 9 8 1 1 6 1 5 4 13 Bad Acts 47 | . . 2 . . 1 1 2 1 13 . . . 6 2 . 4 15 Intel | -11 -10 -9 -9 -8 -8 -8 -8 -6 -6 -6 -6 -6 -5 -5 -5 -4 -4 ------- Run | Yrd Mat Mat Min Mat Sto Rec Scr Fac Ext Cet Arc Hub Fac Upp Upp Fac Arm Active Infowar (turns) 4720 | . . 193 . . . . . 290 37 . . . 1544 603 765 631 657 Sensors 4 | . . 4 . . . . . . . . . . . . . . . Structural 3144 | . . . . . . . . 290 37 . . . 1414 26 725 60 592 Decoding 573 | . . . . . . . . . . . . . . . . 573 . T.N.C. 191 | . . 191 . . . . . . . . . . . . . . . Jamming 3147 | . . . . . . . . . . . . . 937 603 765 604 238 Robot Analysis Total 5 | . . . . . . . 5 . . . . . . . . . . Derelict Logs Recovered 2 | . . . . . . . . . . . . . . 1 1 . . Drone Launches 2 | . . . . . . . 2 . . . . . . . . . . Drone Recoveries 2 | . . . . . . . 2 . . . . . . . . . . Decoded 0b10 Intel 1 | . . . . . . . . . . . . . . . . 1 . Garrisons 1 | . . . . . . . . . . . . . . . . 1 . Exploration | -11 -10 -9 -9 -8 -8 -8 -8 -6 -6 -6 -6 -6 -5 -5 -5 -4 -4 ------------- Run | Yrd Mat Mat Min Mat Sto Rec Scr Fac Ext Cet Arc Hub Fac Upp Upp Fac Arm Turns Passed 13955 | 3 462 726 122 465 239 587 2100 548 1722 633 80 145 1553 603 765 631 2571 Spaces Moved 9208 | 3 525 772 100 216 126 404 1437 338 1149 316 49 64 1025 429 558 402 1295 Core 1147 | . 502 521 . . . . 124 . . . . . . . . . . Treads . | . . . . . . . . . . . . . . . . . . Legs 8061 | 3 23 251 100 216 126 404 1313 338 1149 316 49 64 1025 429 558 402 1295 Wheels . | . . . . . . . . . . . . . . . . . . Hover . | . . . . . . . . . . . . . . . . . . Flight . | . . . . . . . . . . . . . . . . . . Fastest Speed 50 | 120 50 50 120 120 120 120 50 115 116 120 120 114 114 120 120 120 120 Average Speed 114 | 120 53 78 120 188 147 135 112 119 120 120 120 118 119 120 120 120 120 Slowest Speed 193 | 120 120 190 120 190 190 190 130 193 192 120 120 120 190 120 120 120 190 Overloaded Moves . | . . . . . . . . . . . . . . . . . . Propulsion Burnouts . | . . . . . . . . . . . . . . . . . . Robots Hopped . | . . . . . . . . . . . . . . . . . . Potential Cave-ins . | . . . . . . . . . . . . . . . . . . Cave-ins Triggered . | . . . . . . . . . . . . . . . . . . Exploration Rate (%) 47 | 2 89 68 33 18 26 89 89 11 86 60 74 7 29 49 58 18 49 Regions Visited 17 Branch Regions 11 Pre-discovered Areas 11 | . . . . . . 6 3 . . . . . . . 2 . . Known Exits Taken 10 | . . 1 . 1 1 1 1 1 . . . 1 1 1 . 1 . Unknown Exits Taken 7 | 1 1 . 1 . . . . . 1 1 1 . . . 1 . . Scrap Searched 8 | . . . . . . . 4 . . . . . . 3 1 . . Spaces Dug 59 | . . . . . . . . 3 4 . . 5 8 1 4 3 31 Terrain Destroyed 645 | . . 49 . . 2 . 30 25 17 14 . 10 83 6 12 15 382 Melee 3 | . . . . . . . . 3 . . . . . . . . . Projectile 186 | . . 1 . . . . . . 17 14 . 10 34 6 12 15 77 AOE 456 | . . 48 . . 2 . 30 22 . . . . 49 . . . 305 Terrain Rammed . | . . . . . . . . . . . . . . . . . . Walls Destroyed . | . . . . . . . . . . . . . . . . . . Machines Disabled . | . . . . . . . . . . . . . . . . . . Actions | -11 -10 -9 -9 -8 -8 -8 -8 -6 -6 -6 -6 -6 -5 -5 -5 -4 -4 --------- Run | Yrd Mat Mat Min Mat Sto Rec Scr Fac Ext Cet Arc Hub Fac Upp Upp Fac Arm Total 11677 | 2 663 842 101 248 155 424 1897 416 1403 499 68 121 1222 506 623 476 2011 Wait 1156 | . 90 . . . 3 . 344 9 78 102 16 40 77 65 35 4 293 Move 9191 | 2 524 771 99 215 125 403 1436 337 1148 315 48 63 1024 428 557 401 1295 Hop . | . . . . . . . . . . . . . . . . . . Pick Up 185 | . 5 8 . 11 4 2 37 8 12 8 1 . 19 3 4 11 52 Fast Attach 113 | . 1 11 . 2 6 . 12 12 13 8 . . 13 1 2 6 26 Attach 60 | . 1 2 . 2 2 1 7 4 1 1 . . 8 . . 5 26 Detach 10 | . 2 2 . 1 . . 1 . 1 . . . 2 . . . 1 Swap 139 | . 2 11 . . 1 6 6 8 23 7 . 4 10 1 3 6 51 Drop 200 | . 9 7 . 3 4 2 35 7 33 17 1 2 14 2 6 11 47 Fire 532 | . 28 17 . 14 9 6 19 23 45 41 2 8 55 6 16 32 211 Melee 38 | . . 10 . . 1 . . 6 12 . . . . . . . 9 Ram 1 | . 1 . . . . . . . . . . . . . . . . Kick 20 | . . 3 2 . . 4 . 2 5 . . 4 . . . . . Crush . | . . . . . . . . . . . . . . . . . . Escape Stasis . | . . . . . . . . . . . . . . . . . . Rewire 32 | . . . . . . . . . 32 . . . . . . . . Trap . | . . . . . . . . . . . . . . . . . . Miscellaneous . | . . . . . . . . . . . . . . . . . . Route ------- -11/Scrapyard -10/Materials (discovered 5 exits: *Mat x3 / [*Min] / [*Sub]) -9/Materials (discovered 2 exits: *Mat / *Min) -9/Mines -8/Materials -8/Storage -8/Recycling (discovered 2 exits: *Fac / *Scr) -8/Scraptown -6/Factory (discovered 6 exits: Fac x2 / Low x2 / *Ext x2) -6/Extension (discovered 2 exits: *Fac / *Cet) -6/Cetus (discovered 3 exits: *Fac x2 / [*Arc]) -6/Archives (discovered 2 exits: *Hub x2) -6/Hub_04(d) (discovered 4 exits: *Fac x4) -5/Factory (discovered 2 exits: *Upp x2) -5/Upper Caves (discovered 2 exits: *Upp / *War) -5/Upper Caves (discovered 2 exits: *Fac / War) -4/Factory (discovered 3 exits: Res x2 / *Arm) -4/Armory (discovered 1 exit: *Res) History --------- Turn | Location | Event 1 | -11/Scrapyard | Discovered new exit (range 2) 4 | -11/Scrapyard | Entered Materials 187 | -10/Materials | Discovered new exit (range 8) 200 | -10/Materials | Core integrity fell below 50% 209 | -10/Materials | Discovered new exit (range 6) 267 | -10/Materials | Discovered new exit (range 13) 307 | -10/Materials | Build established: Mutant 357 | -10/Materials | Discovered new exit (range 9) 444 | -10/Materials | Discovered new exit (range 8) 455 | -10/Materials | Prayed at D.C.S.S. Altar Unit 466 | -10/Materials | Entered another Materials area 466 | -9/Materials | Evolved 2 slots: Propulsion x1, Utility x1 517 | -9/Materials | X0-1V1 announced a LAN party 571 | -9/Materials | Destroyed 10 combat bots 577 | -9/Materials | Heat dissipation permanently improved by X0-1V1 (+15; -75 max core) 599 | -9/Materials | Lost 3 parts (1n1u1w) 614 | -9/Materials | X0-1V1 activates XOMVISION 754 | -9/Materials | Discovered new exit (range 14) 803 | -9/Materials | X0-1V1 foreshadows a heat wave 867 | -9/Materials | Ambient heat levels rising (+10) 1019 | -9/Materials | Discovered new exit (range 13) 1092 | -9/Materials | Ambient heat levels rising (+10) 1156 | -9/Materials | Identified exit to Mines 1192 | -9/Materials | Entered Mines 1294 | -9/Mines | Discovered new exit (range 18) 1314 | -9/Mines | Entered Materials 1314 | -8/Materials | Evolved 2 slots: Utility x1, Weapon x1 1405 | -8/Materials | X0-1V1 released a cloud of subatomizers 1593 | -8/Materials | Discovered new exit (range 18) 1603 | -8/Materials | Build established: Tank 1649 | -8/Materials | Inventory capacity permanently improved by X0-1V1 (+2; -200 max core) 1727 | -8/Materials | Identified exit to Storage 1779 | -8/Materials | Entered Storage 1872 | -8/Storage | Identified exit to Recycling 1982 | -8/Storage | X0-1V1 caused items to flee you 2013 | -8/Storage | Used back door to open Recycling access 2018 | -8/Storage | Entered Recycling 2277 | -8/Recycling | Propulsion slot count permanently improved by X0-1V1 (+1) 2388 | -8/Recycling | Identified exit to Factory 2388 | -8/Recycling | X0-1V1 revealed exit location to -6/Factory 2454 | -8/Recycling | Core integrity restored by X0-1V1 (+70) 2547 | -8/Recycling | Identified exit to Scraptown 2547 | -8/Recycling | X0-1V1 revealed exit location to -8/Scraptown 2576 | -8/Recycling | Scanned before Scraplab entrance 2594 | -8/Recycling | Entered Scraplab 2605 | -8/Recycling | Entered Scraptown 2849 | -8/Scraptown | Visited Assassins FH 2878 | -8/Scraptown | Visited Symbiants 2900 | -8/Scraptown | Visited Junk Repository 2998 | -8/Scraptown | Build established: Gunner 3063 | -8/Scraptown | Discovered exit to Factory (range 50) 3279 | -8/Scraptown | Visited Cave Peace 3321 | -8/Scraptown | Visited Cyclists 3708 | -8/Scraptown | Visited UFD Registry 3710 | -8/Scraptown | Registered with UFD as "Nutflow" 3743 | -8/Scraptown | Visited Abandonware Association 3758 | -8/Scraptown | Learned abandonware demo "ERRANTS.EXE" 3787 | -8/Scraptown | Visited LU-1G1's Boring Crew 3807 | -8/Scraptown | Visited Curators Association 3841 | -8/Scraptown | Visited DA-N13 Charitable Foundation 3846 | -8/Scraptown | Found DCF Scrap (30 items) 3913 | -8/Scraptown | Visited Junk Repository 3942 | -8/Scraptown | Visited Cartography Club 3960 | -8/Scraptown | Visited Analyses Database 4005 | -8/Scraptown | Visited Derelict Rescue Squad 4245 | -8/Scraptown | Found Deep Structural Scanner 4251 | -8/Scraptown | Learned location of Hub_04(d) (-6) 4251 | -8/Scraptown | Learned location of Quarantine (-2) 4251 | -8/Scraptown | Learned 8 Materials zone layouts 4251 | -8/Scraptown | Learned 12 Factory zone layouts 4251 | -8/Scraptown | Learned 8 Research zone layouts 4251 | -8/Scraptown | Learned 16 Research zone layouts 4251 | -8/Scraptown | Learned 8 Lower Caves zone layouts 4251 | -8/Scraptown | Learned 12 Lower Caves zone layouts 4251 | -8/Scraptown | Learned 8 Upper Caves zone layouts 4251 | -8/Scraptown | Learned 24 Upper Caves zone layouts 4251 | -8/Scraptown | Learned 16 Proximity Caves zone layouts 4251 | -8/Scraptown | Learned 4 Hub_04(d) zone layouts 4251 | -8/Scraptown | Learned Storage emergency access door positions 4251 | -8/Scraptown | Learned location of 2 exits from Research 4251 | -8/Scraptown | Learned location of 3 exits from Lower Caves 4477 | -8/Scraptown | Heard Great Nut preacher, LISTEN AND RECITE! 4481 | -8/Scraptown | Visited Shadow of the Wyrm 4553 | -8/Scraptown | X0-1V1 brought Wyrm Statue to life 4553 | -8/Scraptown | Attacked by Scraptown defenders 4603 | -8/Scraptown | Lost 3 parts (1p1n1u) 4621 | -8/Scraptown | Destroyed 7 combat bots 4693 | -8/Scraptown | Lost 3 parts (1p2w) 4705 | -8/Scraptown | Entered Factory 4705 | -6/Factory | Accompanied by 1 ally 4705 | -6/Factory | Evolved 4 slots: Power x1, Propulsion x1, Utility x2 4706 | -6/Factory | Identified exit to Lower Caves 4707 | -6/Factory | Identified exit to Extension 4707 | -6/Factory | Identified exit to Factory 4712 | -6/Factory | Attached CPS modules to Chaos Wyrm 4882 | -6/Factory | Lost 3 parts (1n2u) 5197 | -6/Factory | Adv. Cooling System reconfigured into Item Mimic 5253 | -6/Factory | Entered Extension 5253 | -6/Extension | Accompanied by 1 ally 5295 | -6/Extension | X0-1V1 added 0b10 threat records associated with you (major) 5370 | -6/Extension | X0-1V1 added 0b10 threat records associated with you (major) 5437 | -6/Extension | Allied Derelicts emerged from ambush trap array 5603 | -6/Extension | First assault squad dispatched 5624 | -6/Extension | Spotted B-75 Beast 5648 | -6/Extension | X0-1V1 vaporized surrounding terrain (radius 22) 5649 | -6/Extension | Rescued a captive Derelict 5650 | -6/Extension | Rescued a captive Derelict 5651 | -6/Extension | Allies destroyed B-75 Beast 5676 | -6/Extension | Lost 3 allies 5711 | -6/Extension | X0-1V1 added 0b10 threat records associated with you (minor) 5797 | -6/Extension | Lost 3 allies 5807 | -6/Extension | Build established: Scavenger-Tank 6054 | -6/Extension | Rescued a captive Derelict 6054 | -6/Extension | Rescued a captive Derelict 6297 | -6/Extension | Rescued a captive Derelict 6298 | -6/Extension | Rescued a captive Derelict 6398 | -6/Extension | Rescued a captive Derelict 6408 | -6/Extension | Rescued a captive Derelict 6408 | -6/Extension | Rescued a captive Derelict 6451 | -6/Extension | X0-1V1 put everyone to sleep 6508 | -6/Extension | Lost 9 allies 6543 | -6/Extension | X0-1V1 vaporized surrounding terrain (radius 17) 6635 | -6/Extension | X0-1V1 sent you into danger 6670 | -6/Extension | Discovered new exit (range 15) 6671 | -6/Extension | Discovered exit to Factory (range 15) 6769 | -6/Extension | Rescued a captive Derelict 6827 | -6/Extension | X0-1V1 vaporized surrounding terrain (radius 17) 6829 | -6/Extension | Rescued A7 6912 | -6/Extension | X0-1V1 activates XOMVISION 6971 | -6/Extension | Core integrity restored by X0-1V1 (+152) 6975 | -6/Extension | Entered Cetus 6975 | -6/Cetus | Accompanied by 6 allies (A7) 6980 | -6/Cetus | Acquired a Cetus Manufacturing Module code from A7 7012 | -6/Cetus | Spotted Cetus Guard 7012 | -6/Cetus | Spotted Cetus Guard 7015 | -6/Cetus | Spotted Cetus Guard 7015 | -6/Cetus | Destroyed Cetus Guard 7015 | -6/Cetus | Spotted Cetus Guard 7022 | -6/Cetus | Allies destroyed Cetus Guard 7031 | -6/Cetus | Allies destroyed Cetus Guard 7034 | -6/Cetus | Allies destroyed Cetus Guard 7164 | -6/Cetus | Started Cetus Manufacturing Module 7174 | -6/Cetus | Discovered new exit (range 20) 7174 | -6/Cetus | X0-1V1 put everyone to sleep 7189 | -6/Cetus | Manufactured an Enhanced Grunt 7199 | -6/Cetus | Spotted Cetus Guard 7199 | -6/Cetus | Spotted Cetus Guard 7206 | -6/Cetus | Spotted Cetus Guard 7209 | -6/Cetus | Spotted Cetus Guard 7214 | -6/Cetus | Manufactured an Enhanced Grunt 7215 | -6/Cetus | Discovered exit to Factory (range 20) 7216 | -6/Cetus | Allies destroyed Cetus Guard 7217 | -6/Cetus | Destroyed Cetus Guard 7219 | -6/Cetus | Allies destroyed Cetus Guard 7225 | -6/Cetus | Destroyed Cetus Guard 7232 | -6/Cetus | Met Revision 17 7239 | -6/Cetus | Manufactured an Enhanced Grunt 7264 | -6/Cetus | Manufactured an Enhanced Grunt 7270 | -6/Cetus | X0-1V1 revealed exit location to -5/Factory 7289 | -6/Cetus | Manufactured an Enhanced Grunt 7326 | -6/Cetus | Attached CPS modules to A7 7488 | -6/Cetus | Murdered A7 7492 | -6/Cetus | Extracted ID and sensor layout for unrecognized location from A7's data core 7498 | -6/Cetus | Found Prototype Protection 7498 | -6/Cetus | Identified Med. Regenerative Plating 7608 | -6/Cetus | Entered Archives 7608 | -6/Archives | Accompanied by 9 allies 7636 | -6/Archives | Met Zhirov 7638 | -6/Archives | Discovered new exit (range 21) 7642 | -6/Archives | Reinforcements dispatched to Archives 7642 | -6/Archives | Discovered new exit (range 21) 7687 | -6/Archives | Reinforcements dispatched to Archives 7688 | -6/Archives | Entered Hub_04(d) 7688 | -6/Hub_04(d) | Accompanied by 6 allies 7795 | -6/Hub_04(d) | Build established: Scavenger-Gunner 7833 | -6/Hub_04(d) | Entered Factory 7833 | -5/Factory | Accompanied by 5 allies 7833 | -5/Factory | Evolved 2 slots: Utility x2 8029 | -5/Factory | X0-1V1 activates XOMVISION 8354 | -5/Factory | X0-1V1 announced a LAN party 8716 | -5/Factory | Identified exit to Upper Caves 8803 | -5/Factory | X0-1V1 caused items to flee you 8950 | -5/Factory | X0-1V1 vaporized surrounding terrain (radius 15) 8957 | -5/Factory | Items stopped fleeing you 8975 | -5/Factory | Lost 3 parts (2p1u) 9152 | -5/Factory | X0-1V1 vaporized surrounding terrain (radius 15) 9154 | -5/Factory | Spotted B-75 Beast 9179 | -5/Factory | Allies destroyed B-75 Beast 9333 | -5/Factory | First assault squad dispatched 9386 | -5/Factory | Entered Upper Caves 9386 | -5/Upper Caves | Accompanied by 1 ally 9387 | -5/Upper Caves | Identified exit to Upper Caves 9661 | -5/Upper Caves | A Derelict revealed a hidden shortcut to "reach the base" 9681 | -5/Upper Caves | Learned Factory trap positions 9929 | -5/Upper Caves | System corruption reached 10% 9989 | -5/Upper Caves | Entered another Upper Caves area 9989 | -5/Upper Caves | Accompanied by 1 ally 10030 | -5/Upper Caves | Discovered new exit (range 13) 10271 | -5/Upper Caves | Attracted the attention of an 0b10 checkpoint 10315 | -5/Upper Caves | Entered an active Warlord outpost 10340 | -5/Upper Caves | Learned location of 1 exit from Research 10340 | -5/Upper Caves | Learned Armory security intel 10340 | -5/Upper Caves | Learned Research garrison access intel 10354 | -5/Upper Caves | X0-1V1 activates XOMVISION 10359 | -5/Upper Caves | Destroyed BL-4BF(g) 10438 | -5/Upper Caves | Identified exit to Warlord 10518 | -5/Upper Caves | Attracted the attention of an 0b10 base 10520 | -5/Upper Caves | Learned location of 1 exit from Research 10520 | -5/Upper Caves | Learned Armory trap positions 10520 | -5/Upper Caves | Learned Factory emergency access door positions 10754 | -5/Upper Caves | Entered Factory 10754 | -4/Factory | Accompanied by 1 ally 10754 | -4/Factory | Evolved 2 slots: Propulsion x1, Utility x1 10755 | -4/Factory | Identified exit to Research 10755 | -4/Factory | Identified exit to Armory 10756 | -4/Factory | Loaded intel: 83 trap records 11082 | -4/Factory | Spotted B-86 Titan 11102 | -4/Factory | Allies destroyed B-86 Titan 11385 | -4/Factory | Entered Armory 11385 | -4/Armory | Accompanied by 1 ally 11386 | -4/Armory | Loaded intel: 58 trap records 11505 | -4/Armory | X0-1V1 announced a LAN party 11635 | -4/Armory | First assault squad dispatched 11731 | -4/Armory | Found Fusion Bomb Launcher 11734 | -4/Armory | Found Fusion Bomb Launcher 11735 | -4/Armory | Found Fusion Bomb Launcher 11799 | -4/Armory | Lost 3 allies 11809 | -4/Armory | Destroyed 7 combat bots 11874 | -4/Armory | High security lockdown imminent 11927 | -4/Armory | X0-1V1 put everyone to sleep 11954 | -4/Armory | High security lockdown engaged 12061 | -4/Armory | Build established: Scavenger-Tank 12134 | -4/Armory | Destroyed 12 combat bots 12297 | -4/Armory | X0-1V1 activates XOMVISION 12383 | -4/Armory | Found Fusion Bomb Launcher 12385 | -4/Armory | Found Fusion Bomb Launcher 12451 | -4/Armory | Found Fusion Bomb Launcher 12454 | -4/Armory | Found Fusion Bomb Launcher 12508 | -4/Armory | X0-1V1 woke everyone up 12510 | -4/Armory | Destroyed 12 combat bots 12569 | -4/Armory | X0-1V1 sent allied Guerrilla (x2) 12578 | -4/Armory | Found Prototype Protection 12578 | -4/Armory | Identified Wyrmscale 12580 | -4/Armory | Found Wyrmscale 12581 | -4/Armory | System corruption reached 10% 12586 | -4/Armory | Found Wyrmscale 12588 | -4/Armory | Core integrity fell below 50% 12624 | -4/Armory | Lost 7 parts (1p4u2w) 12627 | -4/Armory | Found Ragnarok Missile Launcher 12637 | -4/Armory | Found Wyrmscale 12703 | -4/Armory | Found Fusion Bomb Launcher 12704 | -4/Armory | Found Fusion Bomb Launcher 12728 | -4/Armory | Sterilization system engaged 12728 | -4/Armory | Non-combat units ordered to evacuate 12784 | -4/Armory | X0-1V1 sent hostile B-60 Warrior (x2) 12785 | -4/Armory | Destroyed 25 combat bots 12804 | -4/Armory | Weapon slot count temporarily expanded by X0-1V1 (+4) 12824 | -4/Armory | Found Fusion Bomb Launcher 12826 | -4/Armory | Found Fusion Bomb Launcher 12828 | -4/Armory | Combat units ordered to evacuate 12840 | -4/Armory | System corruption reached 30% 12850 | -4/Armory | Found Fusion Bomb Launcher 12863 | -4/Armory | Destroyed 10 combat bots 12879 | -4/Armory | Lost 12 parts (2p1n4u5w) 12891 | -4/Armory | Core integrity fell below 20% 13028 | -4/Armory | Ambient heat levels rising (+10) 13086 | -4/Armory | Centrium Leg reconfigured into Item Mimic 13094 | -4/Armory | Build established: Scavenger-Mutant 13178 | -4/Armory | Ambient heat levels rising (+10) 13205 | -4/Armory | Energy Cycler disabled 13208 | -4/Armory | X0-1V1 caused items to flee you 13328 | -4/Armory | Ambient heat levels rising (+10) 13434 | -4/Armory | Items stopped fleeing you 13435 | -4/Armory | Weapon slot count reverted to normal (-4) 13478 | -4/Armory | Ambient heat levels rising (+10) 13522 | -4/Armory | Found Fusion Bomb Launcher 13524 | -4/Armory | Found Fusion Bomb Launcher 13628 | -4/Armory | Ambient heat levels rising (+10) 13682 | -4/Armory | Discovered exit to Research (range 5) 13778 | -4/Armory | Ambient heat levels rising (+10) 13928 | -4/Armory | Ambient heat levels rising (+10) 13957 | -4/Armory | Core melted Last Messages --------------- 13944_ Overheating: Neutron Cannon damaged (-72). 13947_ Overheating: System interference. 13947_ Adv. Heat Sink temporarily disabled. 13953_ Power failure, Mic. Nuclear Core shutdown. 13954_ Overheating: System interference. 13954_ X0-1V1's Piety Tracker temporarily disabled. 13955_ Overheating: Adv. Heat Sink damaged (-26). 13955_ Overheating: Hds. Centrium Leg damaged (-104). 13955_ Overheating: Wyrmscale damaged (-144). 13955_ Overheating: Neutron Cannon damaged (-54). 13956_ System corrupted: IFF burst signal emitted. 13957_ Overheating: Core damaged (-175). 13957_ X0-1V1 bursts into laughter! Map ----- +----------------------------------------------------+ | ???????????????????????????????????????? | | ???????????????????????????????????????? | | ???????????????????????????????????????? | | ???????????????????????????????????????? | | ???????????????????????????????????????? | | ???????????????????????????????????????? | | ???????????????????????????????????????? | | ???????????????????????????????????????? | | ???????????????????????????????????????? | | ???????????????????????????????????^???? | | ???????????????????????????????????????? | | ??????????????????????? ?????????????? | | ??????????????????????? ? ???????????? | | ??????????????????????" ??????????? | | ??????????????????????? ???????????? | | ??????????????????????? ????????????? | | ??????????????????????? ????????????? | | ??????????????????????? ?????????????? | | ????????????????????#+#+"#######+###???? | | ????????????????????# #???? | | ????????????????????# #???? | | ????????????????????# ????? | | ????????????????????# ?????? | | ????????????????????# #????????? | | ???????????# ######## #????????? | | ???????????# @ #????????? | | ???????????#+######## #?????#### | | ????????????????????# #?????#""" | | ?????????????????#######+# #######"F | | ?????????????????# # | | ?????????????????? # | | ???????????????????????" + | | ?????????????????? # ![ | | ?????????????????# # ##### ![ | | ?????????????????# ?# % #???# | | ?????????????????# """?+ #???# | | ?????????????????# ?????# #???#### | | ?????????????????##??????# #??????# | | ?????????????????????????# #??????### | | ?????????????????????????T #????????? | | ????????????????????????## #????????? | | ?????????????????????????#^^^^#????????? | | ????????????????????????? ????????? | | ????????????????????????? ????????? | | ????????????????????????#######????????? | | ???????????????????????????????????????? | | ???????????????????????????????????????? | | ?????????????????????????????????^?????? | | ???????????????????????????????????????? | | ???????????????????????????????^???????? | +----------------------------------------------------+ Best States ------------- Heat Dissipation 134 Energy Generation 53 Energy Capacity 2000 Matter Stores 740 Matter Capacity 1000 Sight Range 22 Robot Scan Range 14 Terrain Scan Density 10 Jamming Range 14 Base Temperature (-) 200 Armor Coverage 1800 Resistance: KI 50 Weapon Cycling 20 Evasion (%) 70 Core Analysis 6 Offensive Hacking 14 Defensive Hacking 10 Item Schematics ----------------- None Robot Schematics ------------------ None Fabricated ------------ Nothing Repaired ---------- Nothing Studied --------- None Alien Tech Used ----------------- None Achievements -------------- None Challenges ------------ None Game ------ Seed NuclearMultitargetingTreads Manual? 0 Play Time 02:27:18 Cumulative 498.9 hours Start 2026.09.04 @ 12:07:14 End 2026.09.04 @ 15:32:21 Sessions 1 Manual Loads 0 Difficulty Rogue Special Mode None Game No. 185 Rogue 185 Adventurer 0 Explorer 0 Win Type - Total 18 Types 4/0/8/0/1/0/2/1/1/1 Lore% 83 Gallery% 85 Achievement% 77 Wizard Run 0 Options --------- Layout 1 ASCII 0 Keyboard 1 Movement Arrows Keybinds 0 Fullscreen 1 Font 24/Smallcaps Map View 50x35 Zoom Use 0% Tactical HUD 1 Map Filters NONE Filters NONE Steam 1 RUN: c4d8aac5-98fd-4c6b-a41d-6dc167085d10